Cogmind - Beta 14 @@@ ROGUE MODE // 2024.09.15 @ 02:57:27 Player: J1ang-5h1 Result: Destroyed by H-77 Assassin with High-powered Shotgun Performance ------------- Evolutions (6) 3000 Regions Visited (17) 3400 Robots Destroyed (175) 875 Value Destroyed (7556) 7556 Prototype IDs (49) 980 Alien Tech Used (0) 0 Bonus (4369) 4369 TOTAL SCORE: 20180 Bonus ------- High Alert Combat Kills 710 Follower Combat Kills 1803 Entered Garrisons 200 Aligned with FarCom 300 Met Data Miner 300 Acquired ECA 300 Built Enhanced Grunts 300 Met R17 at Cetus 500 Friendly Fire -44 Cogmind --------- Core Integrity 0/1150 Matter 300/300 Energy 99/100 System Corruption 0% Temperature Hot (217) Movement Core (50) Location -4/Factory Parts ------- > --- POWER (2) -------- (None) > --- PROPULSION (6) --- (None) > --- UTILITY (8) ------ (None) > --- WEAPON (3) ------- (None) > --- INVENTORY (5) ---- Fusion Reactor Encrypted Comm Array Trap Reconfigurator Advanced Variable Charge Gun Improved Remote Datajack Peak State ------------ > --- POWER ------------ Fusion Reactor Fusion Reactor > --- PROPULSION ------- Centrium Heavy Treads Centrium Heavy Treads Centrium Heavy Treads > --- UTILITY ---------- Advanced Heat Sink Huge Storage Unit Improved Signal Interpreter Advanced Salvage Targeting Computer Centrium Medium Armor Plating Experimental Thermal Shield Hacking Suite Improved System Shield > --- WEAPON ----------- Advanced KE Penetrator Advanced KE Penetrator Mass Driver > --- INVENTORY -------- Fusion Reactor Fusion Reactor Energy Well Matter Compressor Long-range Terrain Scanner Encrypted Comm Array Advanced Transmission Jammer Phase Shifter Centrium Medium Armor Plating Centrium Medium Armor Plating Force Field Point Defense System Improved Dynamic Insulation System Long-range Tractor Beam Trap Reconfigurator Variable Charge Gun Advanced Variable Charge Gun Advanced Variable Charge Gun Neutron Cannon Advanced KE Penetrator Mass Driver Mass Driver Shock Bomb Launcher Improved Remote Datajack Phasing Sabre [Rating: 147] Favorites ----------- Power Neutrino Core Engine Light Ion Engine Power Core Neutrino Core Reactor Fusion Reactor Propulsion Light Treads Treads Light Treads Leg Carbon-fiber Leg Wheel Compact Wheel Hover Unit Linear Gravjet Utility High-capacity Storage Unit Device Trap Reconfigurator Storage High-capacity Storage Unit Processor Improved Signal Interpreter Hackware Hacking Suite Protection Utility Shielding Weapon Advanced Beam Cannon Energy Gun Beam Rifle Energy Cannon Advanced Beam Cannon Ballistic Gun Advanced KE Penetrator Ballistic Cannon Advanced Assault Cannon Launcher Missile Launcher Special Weapon Improved Plasma Cutter Impact Weapon Power Maul Slashing Weapon Phasing Sabre Build | -11 -10 -10 -10 -9 -8 -8 -8 -8 -7 -7 -7 -6 -6 -5 -5 -5 -4 ------- Run | Yrd Mat Min Exi Min Mat Gar Mat Sto Fac Low Dat Pro Fac Fac Ext Cet Fac Slots Evolved 12 | . . . . . 4 . . . 2 . . . 2 2 . . 2 Power 1 | . . . . . . . . . . . . . 1 . . . . Propulsion 4 | . . . . . 2 . . . . . . . . 1 . . 1 Utility 6 | . . . . . 2 . . . 2 . . . 1 . . . 1 Weapon 1 | . . . . . . . . . . . . . . 1 . . . Parts Attached 275 | 4 24 . 2 . 19 31 2 13 32 6 . 9 12 29 51 15 26 Power 20 | . . . . . 2 1 . 1 2 . . 1 2 3 5 . 3 Engine 9 | . . . . . 2 . . 1 2 . . 1 2 . 1 . . Core 8 | . . . . . . 1 . . . . . . . 3 4 . . Reactor 3 | . . . . . . . . . . . . . . . . . 3 Propulsion 59 | . 4 . . . 7 4 1 5 8 . . 4 1 9 12 3 1 Treads 12 | . 4 . . . 2 . . . . . . . . 2 . 3 1 Leg 44 | . . . . . 5 3 1 5 7 . . 4 1 6 12 . . Wheel 2 | . . . . . . 1 . . 1 . . . . . . . . Hover 1 | . . . . . . . . . . . . . . 1 . . . Flight . | . . . . . . . . . . . . . . . . . . Utility 82 | 2 7 . 1 . 4 2 1 4 9 1 . 2 3 10 17 4 15 Device 46 | 2 2 . . . 1 1 . 1 4 1 . 1 1 7 12 2 11 Storage 7 | . 3 . 1 . . . . . . . . . . 1 2 . . Processor 4 | . . . . . . . . . 2 . . . 1 . 1 . . Hackware 2 | . . . . . . . . 1 . . . . . 1 . . . Protection 23 | . 2 . . . 3 1 1 2 3 . . 1 1 1 2 2 4 Artifact . | . . . . . . . . . . . . . . . . . . Weapon 114 | 2 13 . 1 . 6 24 . 3 13 5 . 2 6 7 17 8 7 Energy Gun 22 | 1 9 . 1 . . 5 . . . . . . . . 4 2 . Energy Cannon 14 | . . . . . . . . 2 6 1 . . 2 1 . 1 1 Ballistic Gun 13 | 1 3 . . . . . . . . . . . 1 . 2 3 3 Ballistic Cannon 26 | . 1 . . . 4 10 . 1 . 2 . 1 1 . 5 1 . Launcher 18 | . . . . . 2 2 . . 2 2 . 1 1 2 2 1 3 Special Weapon 4 | . . . . . . . . . . . . . . 2 2 . . Impact Weapon 15 | . . . . . . 7 . . 5 . . . 1 2 . . . Slashing Weapon 2 | . . . . . . . . . . . . . . . 2 . . Piercing Weapon . | . . . . . . . . . . . . . . . . . . Special Melee Weapon . | . . . . . . . . . . . . . . . . . . Unidentified Prototypes 6 | . . . . . . . . . . . . . . . . 6 . Corrupted Parts 8 | . . . . . . . . . . . . . . . . 8 . System Corruption 68 | . . . . . . . . . . . . . . . . 68 . Parts Lost 78 | . 2 . . . 5 8 1 7 6 1 . 3 4 18 6 . 17 Power 10 | . . . . . . 1 . . 1 . . 2 . 3 . . 3 Propulsion 30 | . . . . . 3 4 . 5 4 . . . 1 6 4 . 3 Utility 21 | . 1 . . . 2 1 1 2 1 . . 1 1 4 . . 7 Weapon 17 | . 1 . . . . 2 . . . 1 . . 2 5 2 . 4 Highest Loss Streak 17 | . 1 . . . 3 5 1 4 3 1 . 2 2 11 3 . 17 To Critical Strikes 1 | . . . . . . . . . . . . . . 1 . . . Average Slot Usage (%) 92 | . 99 100 100 100 94 86 99 95 92 100 100 90 87 81 92 88 81 Engine 6 | . 14 14 14 14 9 2 . 2 6 7 7 1 3 6 . . . Core 3 | . . . . . . 6 9 6 . . . . . 2 8 11 8 Treads 9 | . 27 28 28 28 16 . . . . . . . . 2 1 9 14 Leg 15 | . . . . . 15 17 28 32 21 30 30 30 25 15 23 7 . Device 10 | . 9 14 14 14 13 15 13 9 11 12 15 11 11 9 3 5 9 Storage 8 | . 14 14 14 14 9 9 9 9 7 7 7 7 6 6 6 5 4 Processor 6 | . . . . . . . . . 13 15 15 15 18 11 16 11 9 Hackware 3 | . . . . . . . . 1 7 7 7 7 6 5 11 11 9 Protection 5 | . 4 . . . 12 11 13 15 3 2 . . . 3 1 4 4 Energy Gun 7 | . 26 28 28 28 . 7 . . . . . . . . 3 . . Energy Cannon 3 | . . . . . . . . 16 13 12 7 7 6 3 . . . Ballistic Cannon 5 | . . . . . 17 6 9 1 1 1 7 4 1 . 9 10 4 Peak Build Rating 147 | 9 11 11 12 12 40 40 40 39 57 54 54 54 63 78 96 125 147 Average Rating 46 | 7 8 11 11 12 35 34 39 33 46 52 54 49 54 62 83 105 139 On Entrance 40 | 6 8 11 11 12 12 38 40 38 31 52 54 54 46 63 48 83 125 Naked Turns 7 | . . . . . . . . . . . . . . . . . 7 Heaviest Build 159 | 12 47 30 50 50 69 68 66 66 67 69 69 69 84 90 155 159 139 Greatest Support 240 | 20 40 40 40 40 45 45 45 45 80 80 80 80 80 98 100 160 240 Greatest Overweight (x) 22 | . 1 . 1 1 22 6 1 6 6 . . 2 1 3 3 2 . Average Overweight (x) . | . . . . 1 1 2 1 1 . . . . . . 1 . . Largest Inventory Capacity 25 | 8 15 15 20 20 20 20 20 20 20 20 20 20 20 20 25 25 25 Average Capacity 19 | 8 10 15 17 20 20 20 20 20 20 20 20 20 20 20 23 25 24 Most Carried 25 | 8 15 15 16 16 20 20 20 20 20 20 20 20 20 20 25 25 25 Average Carried 18 | 7 9 14 15 16 19 18 19 19 19 19 20 19 19 18 22 24 22 Final Capacity 25 | 8 15 15 20 20 20 20 20 20 20 20 20 20 20 20 25 25 5 Final Carried 25 | 8 15 15 16 16 20 19 19 19 20 20 20 20 17 16 24 25 5 Class Distribution -------------------- 56% | Mutant 22% | Scavenger-Mutant 13% | Scavenger-Skirmisher 4% | Scavenger-Tank Dominant Class ---------------- Mutant | -10/Materials Mutant | -10/Mines Mutant | -10/Exiles Mutant | -9/Mines Mutant | -8/Materials Mutant | -8/Garrison Scavenger-Mutant | -8/Materials Scavenger-Mutant | -8/Storage Mutant | -7/Factory Mutant | -7/Lower Caves Mutant | -7/Data Miner Scavenger-Mutant | -6/Proximity Caves Scavenger-Assassin | -6/Factory Scavenger-Mutant | -5/Factory Scavenger-Skirmisher | -5/Extension Scavenger-Tank | -5/Cetus Scavenger-Skirmisher | -4/Factory Resources | -11 -10 -10 -10 -9 -8 -8 -8 -8 -7 -7 -7 -6 -6 -5 -5 -5 -4 ----------- Run | Yrd Mat Min Exi Min Mat Gar Mat Sto Fac Low Dat Pro Fac Fac Ext Cet Fac Matter Collected 5943 | 259 269 . 40 . 623 651 181 264 387 147 . 233 110 590 1247 263 679 Remotely 634 | . . . . . . . . . . . . . . . 209 . 425 Salvage Created 6407 | 188 631 136 . . 498 552 219 620 571 395 . 251 228 487 895 236 500 Parts 274 | 15 32 4 . . 29 21 9 25 20 10 . 17 12 12 36 11 21 Haulers Intercepted 4 | . 1 . . . . . . 1 . . . . . . 2 . . Recyclers Shooed 4 | . . . . . . . . . 1 . . . . 2 1 . . Parts Field Recycled . | . . . . . . . . . . . . . . . . . . Retrieved Matter . | . . . . . . . . . . . . . . . . . . Parts Self-Destructed 19 | . . . . . . . . . . 8 . 11 . . . . . Prevented . | . . . . . . . . . . . . . . . . . . Kills | -11 -10 -10 -10 -9 -8 -8 -8 -8 -7 -7 -7 -6 -6 -5 -5 -5 -4 ------- Run | Yrd Mat Min Exi Min Mat Gar Mat Sto Fac Low Dat Pro Fac Fac Ext Cet Fac Combat Hostiles Destroyed 145 | . 8 4 . . 20 19 5 9 14 13 . 8 4 13 19 3 6 Melee 6 | . . . . . . 3 2 . . . . . . 1 . . . Guns 20 | . 6 4 . . . 3 . . . . . . . 1 2 . 4 Cannons 63 | . 1 . . . 14 9 . 8 6 6 . 1 4 6 6 . 2 AOE 45 | . 1 . . . 6 3 . . 8 6 . 7 . 4 10 . . Classes Destroyed 17 | 2 3 1 . . 5 1 . 1 2 . . . 1 . . . 1 Worker 5 | . . . . . 1 . 1 . . . . . 1 1 1 . . Builder 6 | . . . . . . . . . 1 . . . 1 . 2 . 2 Tunneler 5 | 5 . . . . . . . . . . . . . . . . . Hauler 4 | . 1 . . . . . . 1 . . . . . . 2 . . Recycler 8 | 1 2 . . . 1 . . 2 2 . . . . . . . . Operator 1 | . . . . . . . . 1 . . . . . . . . . Watcher 7 | . 3 . . . 1 . 2 . . . . . . . . 1 . Swarmer 28 | . . 2 . . 5 4 2 2 . 1 . 3 . 2 6 . 1 Grunt 71 | . 8 2 . . 9 9 2 6 5 8 . 4 3 6 8 . 1 Brawler 4 | . . . . . 1 . . . . 2 . . . . . . 1 Duelist 3 | . . . . . 1 . . . . 1 . . . . . . 1 Sentry 9 | . . . . . 2 . 1 1 1 1 . . . 1 2 . . Demolisher 1 | . . . . . . . . . . . . . . . . . 1 Hunter 8 | . . . . . 2 3 . . . . . . . . 2 . 1 Programmer 11 | . . . . . . 3 . . 2 . . 1 . 4 1 . . Heavy 1 | . . . . . . . . . . . . . 1 . . . . Cetus Guard 3 | . . . . . . . . . . . . . . . . 3 . Assembled 6 | . . . . . . . . . 6 . . . . . . . . Best Kill Streak 13 | 3 3 2 . . 4 3 4 3 7 5 . 4 6 3 13 4 6 Combat Bots Only 11 | . 2 2 . . 4 3 2 3 7 5 . 4 4 3 11 3 5 Max Kills in Single Turn 4 | 1 1 1 . . 2 3 1 1 3 2 . 2 2 2 4 1 2 Gunslinging . | . . . . . . . . . . . . . . . . . . Exploded 4 | . 1 . . . 2 3 . . 3 2 . 2 . 2 4 . . Melee 1 | . . . . . . 1 1 . . . . . . 1 . . . Uniques/NPCs Destroyed . | . . . . . . . . . . . . . . . . . . Combat | -11 -10 -10 -10 -9 -8 -8 -8 -8 -7 -7 -7 -6 -6 -5 -5 -5 -4 -------- Run | Yrd Mat Min Exi Min Mat Gar Mat Sto Fac Low Dat Pro Fac Fac Ext Cet Fac Hostile Shots Fired 1399 | . 60 16 . . 118 132 17 67 102 53 . 43 63 212 70 37 409 Missed 325 | . 14 3 . . 29 43 8 9 41 16 . 12 19 52 16 14 49 Damage Taken 17620 | . 554 143 . . 1296 1375 94 947 832 650 . 571 863 2866 1054 246 6129 Core 2431 | . 74 . . . 184 253 . 57 126 49 . 76 32 312 82 31 1155 Absorbed by Shields 615 | . . . . . . 6 . . . . . . . 138 52 235 184 Reduced by Siege Mode 539 | . . . . . . . . . . . . . . . . . 539 Redirected to Shielding 52 | . . . . . 15 37 . . . . . . . . . . . Ignored by Resistances 1668 | . . . . . 54 . . . . . . . . . 8 162 1444 Regen/Repaired (Parts) 786 | . . . . . 189 . . . . . . . . 597 . . . Core Remaining (%) 66 | 100 . . . 70 . . . 10 . . . 64 96 . . 57 . Volleys Fired 515 | 22 45 11 . . 74 63 . 37 43 31 . 10 30 63 39 13 34 Largest 3 | 2 2 2 . . 2 2 . 2 2 2 . 2 2 2 3 3 3 Hottest 225 | 80 112 112 . . 96 112 . 136 136 136 . 116 136 98 225 171 160 Shots Fired 872 | 25 84 22 . . 106 104 . 75 80 53 . 14 48 79 89 17 76 Gun 257 | 25 76 22 . . . 47 . . . . . . 3 17 23 . 44 Cannon 529 | . 8 . . . 102 56 . 75 74 44 . 8 36 37 60 6 23 Launcher 68 | . . . . . 4 1 . . 6 9 . 6 9 10 3 11 9 Special 18 | . . . . . . . . . . . . . . 15 3 . . Kinetic 372 | 19 15 . . . 102 56 . 3 . 4 . 4 18 17 66 6 62 Thermal 377 | . 23 22 . . . 47 . 72 74 40 . 4 21 52 17 . 5 Explosive 39 | . . . . . 4 1 . . 6 9 . 6 . 10 3 . . Electromagnetic 81 | 6 46 . . . . . . . . . . . 9 . . 11 9 Robot Hit Streak 15 | 5 6 8 . . 15 10 . 11 12 10 . 3 8 9 15 6 9 Robot Miss Streak 4 | 2 4 3 . . 3 3 . 3 3 2 . 3 2 3 3 2 3 Penetration Max 1 | . . . . . . . . . . . . . . 1 1 1 1 Secondary Targets 3 | . 1 1 . . . 1 . . . . . . . . . . . Max Gunslinging Chain 1 | . 1 1 . . . 1 . . . . . . . . . . . Shots Hit Robots 558 | 17 44 14 . . 67 68 10 48 52 37 . 7 26 58 51 7 52 Core Hits 347 | 9 22 6 . . 34 35 2 23 38 26 . 12 16 29 42 19 34 Critical Kills 6 | . . . . . . . 1 1 . 1 . . . . . . 3 Critical Parts Destroyed 12 | 1 . . . . . 1 4 . . . . . . 3 . . 3 Critical Strikes 37 | 1 1 2 . . 5 5 5 1 . 1 . . . 5 2 1 8 Burn 6 | . 1 2 . . . 3 . . . . . . . . . . . Meltdown 2 | . . . . . . . . 1 . 1 . . . . . . . Destroy 8 | 1 . . . . . . . . . . . . . . . . 7 Blast 10 | . . . . . 5 1 . . . . . . . . 2 1 1 Smash 9 | . . . . . . 1 5 . . . . . . 3 . . . Sever 2 | . . . . . . . . . . . . . . 2 . . . Melee Attacks 78 | . . . . . . 34 12 . 5 . . . 3 23 1 . . Impact 77 | . . . . . . 34 12 . 5 . . . 3 23 . . . Slashing 1 | . . . . . . . . . . . . . . . 1 . . Piercing . | . . . . . . . . . . . . . . . . . . Sneak Attacks 1 | . . . . . . . 1 . . . . . . . . . . Combat Hostiles . | . . . . . . . . . . . . . . . . . . Follow-up Attacks . | . . . . . . . . . . . . . . . . . . Damage Inflicted 20256 | 183 833 209 . . 2342 1763 538 1037 1905 1913 . 681 828 2327 2491 826 2380 Guns 3316 | 183 576 209 . . . 466 . . . . . . 34 286 435 . 1127 Cannons 8340 | . 96 . . . 1646 751 . 1037 1039 649 . 105 545 467 1182 241 582 Explosions 6931 | . 161 . . . 690 187 . . 866 1264 . 576 249 808 874 585 671 Melee 1531 | . . . . . . 359 538 . . . . . . 634 . . . Ramming 6 | . . . . . 6 . . . . . . . . . . . . Kinetic 6647 | 126 139 . . . 1646 751 . 47 . 54 . 59 354 286 1361 241 1583 Thermal 5053 | . 299 209 . . . 466 . 990 1039 595 . 46 260 599 256 . 294 Explosive 5265 | . . . . . 690 187 . . 866 1264 . 576 . 808 874 . . Electromagnetic 1754 | 57 395 . . . . . . . . . . . 214 . . 585 503 Impact 1531 | . . . . . . 359 538 . . . . . . 634 . . . Slashing . | . . . . . . . . . . . . . . . . . . Piercing . | . . . . . . . . . . . . . . . . . . Highest Corruption 71 | . . . . . . . . 1 . . . 1 . 3 3 71 . Average Corruption 3 | . . . . . . . . 1 . . . 1 . 2 3 15 . Corruption Purged 2 | . . . . . . . . . . . . . . 2 . . . Corruption Blocked . | . . . . . . . . . . . . . . . . . . Effects 75 | . . . . . . . . 7 . . . 3 . 7 37 21 . Message Errors 16 | . . . . . . . . . . . . 1 . 1 9 5 . Matter Fused 17 | . . . . . . . . 2 . . . 1 . 1 8 5 . Heat Flow Errors 8 | . . . . . . . . . . . . . . 3 1 4 . Energy Discharges 7 | . . . . . . . . 1 . . . 1 . . 4 1 . Parts Rejected 1 | . . . . . . . . . . . . . . . 1 . . Parts Fused 2 | . . . . . . . . 1 . . . . . . . 1 . Data Loss (minor) 14 | . . . . . . . . 1 . . . . . . 8 5 . Data Loss (major) 3 | . . . . . . . . 1 . . . . . . 2 . . Misfires 5 | . . . . . . . . 1 . . . . . . 4 . . Alerts 1 | . . . . . . . . . . . . . . 1 . . . Weapon Failures 1 | . . . . . . . . . . . . . . 1 . . . Overload Shots 1 | . . . . . . . . . . . . . . . 1 . . Overflow Damage 883 | . . . . . 77 57 281 . 2 47 . 18 21 341 39 . . Projectiles 44 | . . . . . 18 8 . . 2 . . . . 16 . . . Explosions 222 | . . . . . 59 . . . . 47 . 18 21 38 39 . . Melee 617 | . . . . . . 49 281 . . . . . . 287 . . . Knockbacks 53 | . . . . . 28 5 1 . . . . 1 2 4 6 . 6 Impact 5 | . . . . . . . 1 . . . . . . 4 . . . Kinetic 38 | . . . . . 19 5 . . . . . 1 2 . 6 . 5 Secondary 10 | . . . . . 9 . . . . . . . . . . . 1 Self-Inflicted Damage 143 | . . . . . 43 . . . . . . 79 10 11 . . . Shots 7 | . . . . . 2 . . . . . . 3 1 1 . . . Rammed 1 | . . . . . 1 . . . . . . . . . . . . Targets Rammed 1 | . . . . . 1 . . . . . . . . . . . . Kicked . | . . . . . . . . . . . . . . . . . . Crushed . | . . . . . . . . . . . . . . . . . . Highest Temperature 595 | 54 252 144 . . 293 225 . 425 6 130 . 24 24 273 420 256 595 Average Temperature 128 | 28 115 63 . . 109 85 . 117 3 80 . 15 14 135 118 111 307 Received Heat Transfer 5473 | . 303 45 . . 603 477 27 513 201 342 . 108 90 607 407 25 1725 Effects 42 | . 2 . . . 1 1 . 4 . . . . . . 3 . 31 Shutdowns 13 | . . . . . . . . 1 . . . . . . 1 . 11 Energy Bleed 9 | . . . . . 1 1 . . . . . . . . 1 . 6 Interference 12 | . 2 . . . . . . 3 . . . . . . . . 7 Matter Decay 3 | . . . . . . . . . . . . . . . 1 . 2 Short Circuit 1 | . . . . . . . . . . . . . . . . . 1 Damage (minor) 1 | . . . . . . . . . . . . . . . . . 1 Damage (major) 1 | . . . . . . . . . . . . . . . . . 1 Damage (core) 2 | . . . . . . . . . . . . . . . . . 2 Siege Activations 2 | . . . . . . . . . . . . . . . . . 2 Total Turns 58 | . . . . . . . . . . . . . . . . . 58 Longest Duration 54 | . . . . . . . . . . . . . . . . . 54 Robots Corrupted 8 | . . . . . . . 4 . . . . . . 1 . 3 . Combat Hostiles 7 | . . . . . . . 3 . . . . . . 1 . 3 . Parts Fried 14 | . 2 . . . . 1 7 . . . . . . 3 . 1 . Impact Corruptions 21 | . . . . . . 3 8 . . . . . . 10 . . . Robots Melted 4 | . . . . . . 1 . 1 . 1 . . . . 1 . . Combat Hostiles 4 | . . . . . . 1 . 1 . 1 . . . . 1 . . Parts Melted 22 | . 1 1 . . . . . 2 5 7 . . . 3 3 . . Heat Transferred 9489 | . 507 666 . . . 1406 . 1739 1813 1073 . 74 457 1110 444 . 200 Parts Sabotaged . | . . . . . . . . . . . . . . . . . . Parts Stolen . | . . . . . . . . . . . . . . . . . . Parts Stripped . | . . . . . . . . . . . . . . . . . . Power Chain Reactions 6 | . 2 . . . . . . . . . . . 1 . . 1 2 Alert | -11 -10 -10 -10 -9 -8 -8 -8 -8 -7 -7 -7 -6 -6 -5 -5 -5 -4 ------- Run | Yrd Mat Min Exi Min Mat Gar Mat Sto Fac Low Dat Pro Fac Fac Ext Cet Fac Peak Influence 1149 | 30 185 110 . . 212 992 672 353 162 . . . 101 164 948 611 1149 Initial 530 | . 19 11 . . . 137 483 283 72 . . . . 39 62 530 327 Average 164 | 17 65 38 . . 64 437 587 188 69 . . . 22 71 102 584 549 Maximum Alert Level 4 | . . . . . 1 3 2 1 . . . . . . 3 2 4 Low Security (%) 76 | 100 100 100 . 100 97 16 . 66 100 . . . 100 100 89 . . Level 1 8 | . . . . . 2 32 . 33 . . . . . . 3 . 35 Level 2 10 | . . . . . . 27 100 . . . . . . . 6 100 35 Level 3 3 | . . . . . . 23 . . . . . . . . 1 . 22 Level 4 . | . . . . . . . . . . . . . . . . . 6 Level 5 . | . . . . . . . . . . . . . . . . . . High Security . | . . . . . . . . . . . . . . . . . . Max Security . | . . . . . . . . . . . . . . . . . . Squads Dispatched 29 | . 2 . . . 4 . . 1 6 . . . 2 6 2 . 6 Investigation 9 | . 2 . . . 1 . . 1 3 . . . . 1 1 . . Extermination 5 | . . . . . . . . . 2 . . . . 2 . . 1 Reinforcement 7 | . . . . . 1 . . . 1 . . . 2 . 1 . 2 Assault 3 | . . . . . . . . . . . . . . . . . 3 Garrison 5 | . . . . . 2 . . . . . . . . 3 . . . Intercept . | . . . . . . . . . . . . . . . . . . Searches Triggered . | . . . . . . . . . . . . . . . . . . Construction Impeded 4 | . . . . . . . . . 1 . . . 1 . 1 . 1 Haulers Reinforced . | . . . . . . . . . . . . . . . . . . Active Scanning Responses . | . . . . . . . . . . . . . . . . . . Cargo Convoy Interrupts . | . . . . . . . . . . . . . . . . . . Stealth | -11 -10 -10 -10 -9 -8 -8 -8 -8 -7 -7 -7 -6 -6 -5 -5 -5 -4 --------- Run | Yrd Mat Min Exi Min Mat Gar Mat Sto Fac Low Dat Pro Fac Fac Ext Cet Fac Distress Signals 11 | . . . . . 2 . 1 2 1 . . . . 2 1 2 . Communications Jammed 20 | . . . . . . . . . . . . . . . . . 20 Distress Signals 20 | . . . . . . . . . . . . . . . . . 20 Times Spotted 249 | . 16 5 . . 25 18 8 13 27 13 . 8 7 20 42 9 38 Peak Tracking Total 16 | . 4 2 . . 4 4 3 4 6 5 . 4 4 5 11 5 16 Tactical Retreats 17 | . 1 . . . 1 2 2 3 2 . . 1 . 2 1 . 2 Traps | -11 -10 -10 -10 -9 -8 -8 -8 -8 -7 -7 -7 -6 -6 -5 -5 -5 -4 ------- Run | Yrd Mat Min Exi Min Mat Gar Mat Sto Fac Low Dat Pro Fac Fac Ext Cet Fac Traps Triggered 16 | . 1 . . . 1 9 . 2 2 . . . . . . . 1 Indirectly . | . . . . . . . . . . . . . . . . . . Trap Hack Attempts . | . . . . . . . . . . . . . . . . . . Triggered . | . . . . . . . . . . . . . . . . . . Disarmed . | . . . . . . . . . . . . . . . . . . Reprogrammed . | . . . . . . . . . . . . . . . . . . Reused 4 | . . . . . . . . . . . . . . . 4 . . Traps Reconfigurated 49 | . . . . . 4 16 . 5 6 . . . . 4 14 . . Traps Extracted . | . . . . . . . . . . . . . . . . . . Installed . | . . . . . . . . . . . . . . . . . . Triggered 4 | . . . . . . . . . . . . . . . 4 . . Machines | -11 -10 -10 -10 -9 -8 -8 -8 -8 -7 -7 -7 -6 -6 -5 -5 -5 -4 ---------- Run | Yrd Mat Min Exi Min Mat Gar Mat Sto Fac Low Dat Pro Fac Fac Ext Cet Fac Machines Disabled 27 | . 1 1 . . 2 6 . . 1 1 . . 1 2 5 . 7 Max in Single Turn 2 | . 1 . . . 1 2 . . 1 1 . . 1 2 1 . 2 Garrison Relay 2 | . . . . . . 2 . . . . . . . . . . . Phase Generator 1 | . . . . . . 1 . . . . . . . . . . . Machines Repaired . | . . . . . . . . . . . . . . . . . . Machines Dismantled . | . . . . . . . . . . . . . . . . . . Machines Sabotaged . | . . . . . . . . . . . . . . . . . . Overloaded Fab Kills . | . . . . . . . . . . . . . . . . . . Hacking | -11 -10 -10 -10 -9 -8 -8 -8 -8 -7 -7 -7 -6 -6 -5 -5 -5 -4 --------- Run | Yrd Mat Min Exi Min Mat Gar Mat Sto Fac Low Dat Pro Fac Fac Ext Cet Fac Machines Accessed 56 | . 7 . 2 . 9 1 . 3 9 . 4 . 4 6 7 1 3 Terminals 37 | . 6 . . . 6 1 . 3 5 . . . 3 3 7 1 2 Fabricators 3 | . . . . . . . . . 2 . . . . 1 . . . Repair Stations 4 | . . . . . 1 . . . . . . . 1 1 . . 1 Recycling Units 1 | . 1 . . . . . . . . . . . . . . . . Scanalyzers 4 | . . . . . 1 . . . 2 . . . . 1 . . . Garrison Access 1 | . . . . . 1 . . . . . . . . . . . . Total Hacks 200 | . 28 . 5 . 33 2 . 9 20 . 31 . 13 26 26 2 5 Successful 124 | . 22 . 5 . 18 1 . 4 8 . 31 . 5 16 11 1 2 Failed 75 | . 6 . . . 14 1 . 5 12 . . . 8 10 15 1 3 Catastrophic 9 | . . . . . 1 . . 2 4 . . . . . 1 . 1 Database Lockouts 1 | . . . . . 1 . . . . . . . . . . . . Manual 73 | . 17 . 1 . 13 1 . 8 5 . . . 7 5 15 1 . Terminals 123 | . 26 . . . 25 2 . 9 12 . . . 11 7 26 2 3 Fabricators 7 | . . . . . . . . . 3 . . . . 4 . . . Repair Stations 20 | . . . . . 5 . . . . . . . 2 11 . . 2 Recycling Units 2 | . 2 . . . . . . . . . . . . . . . . Scanalyzers 11 | . . . . . 2 . . . 5 . . . . 4 . . . Garrison Access 1 | . . . . . 1 . . . . . . . . . . . . Terminal Hacks 69 | . 13 . 5 . 5 1 . 1 1 . 31 . 3 1 6 1 1 Record 15 | . . . 4 . . . . . . . 11 . . . . . . Part Schematic 12 | . 1 . . . . . . . . . 11 . . . . . . Robot Schematic 6 | . . . . . . . . . . . 6 . . . . . . Robot Analysis 8 | . 4 . . . 1 . . . . . . . 1 . 2 . . Prototype ID Bank 6 | . 1 . . . 1 . . . . . 3 . 1 . . . . Open Door 2 | . . . . . . . . 1 . . . . . . . 1 . Open DSF 1 | . . . . . . . . . . . . . . . . . 1 Branch Access Points 3 | . . . . . . . . . 1 . . . 1 1 . . . Emergency Access Points 1 | . . . . . . 1 . . . . . . . . . . . Terminal Index 2 | . 1 . . . . . . . . . . . . . 1 . . Alert Level 1 | . . . . . . . . . . . . . . . 1 . . Unreport Threat 1 | . 1 . . . . . . . . . . . . . . . . Locate Traps 3 | . 2 . . . . . . . . . . . . . 1 . . Hauler Manifests 3 | . 1 . . . 1 . . . . . . . . . 1 . . Registered Prototypes 2 | . 1 . . . 1 . . . . . . . . . . . . Zone Layout 2 | . 1 . . . 1 . . . . . . . . . . . . Derelict Proto ID Bank 1 | . . . 1 . . . . . . . . . . . . . . Fabricator Hacks 3 | . . . . . . . . . 1 . . . . 2 . . . Load Schematic 2 | . . . . . . . . . 1 . . . . 1 . . . Build 1 | . . . . . . . . . . . . . . 1 . . . Repair Station Hacks 13 | . . . . . 4 . . . . . . . . 8 . . 1 Scan Component 7 | . . . . . 2 . . . . . . . . 4 . . 1 Repair 6 | . . . . . 2 . . . . . . . . 4 . . . Recycling Unit Hacks 1 | . 1 . . . . . . . . . . . . . . . . Report Inventory 1 | . 1 . . . . . . . . . . . . . . . . Scanalyzer 8 | . . . . . 2 . . . 3 . . . . 3 . . . Insert Component 5 | . . . . . 2 . . . 2 . . . . 1 . . . Analyze 3 | . . . . . . . . . 1 . . . . 2 . . . Garrison Access Hacks 1 | . . . . . 1 . . . . . . . . . . . . Unlock Access 1 | . . . . . 1 . . . . . . . . . . . . Unauthorized Hacks 29 | . 8 . . . 6 . . 3 3 . . . 2 2 5 . . Terminals 28 | . 7 . . . 6 . . 3 3 . . . 2 2 5 . . Assimilate 1 | . . . . . . . . . 1 . . . . . . . . Botnet 12 | . 2 . . . 2 . . 2 2 . . . 1 1 2 . . Skim 15 | . 5 . . . 4 . . 1 . . . . 1 1 3 . . Fabricators . | . . . . . . . . . . . . . . . . . . Repair Stations . | . . . . . . . . . . . . . . . . . . Recycling Units 1 | . 1 . . . . . . . . . . . . . . . . Tunnel 1 | . 1 . . . . . . . . . . . . . . . . Scanalyzers . | . . . . . . . . . . . . . . . . . . Garrison Access . | . . . . . . . . . . . . . . . . . . Data Cores Recovered . | . . . . . . . . . . . . . . . . . . Used . | . . . . . . . . . . . . . . . . . . Hacking Detections 44 | . 7 . . . 7 1 . 2 9 . . . 4 6 6 1 1 Full Trace Events 5 | . . . . . . . . 1 3 . . . . 1 . . . Feedback Events . | . . . . . . . . . . . . . . . . . . Feedback Blocked . | . . . . . . . . . . . . . . . . . . Robot Schematics Acquired 6 | . . . . . . . . . . . 6 . . . . . . Robots Built . | . . . . . . . . . . . . . . . . . . Authchips . | . . . . . . . . . . . . . . . . . . Time . | . . . . . . . . . . . . . . . . . . Total Robot Build Rating . | . . . . . . . . . . . . . . . . . . Part Schematics Acquired 14 | . 1 . . . . . . . 1 . 11 . . 1 . . . Parts Built 1 | . . . . . . . . . . . . . . 1 . . . Authchips . | . . . . . . . . . . . . . . . . . . Time 25 | . . . . . . . . . . . . . . 25 . . . Total Part Build Rating 1 | . . . . . . . . . . . . . . 1 . . . Parts Repaired 6 | . . . . . 2 . . . . . . . . 4 . . . Time 241 | . . . . . 52 . . . . . . . . 189 . . . Parts Recycled . | . . . . . . . . . . . . . . . . . . Recycled Matter . | . . . . . . . . . . . . . . . . . . Retrieved Matter . | . . . . . . . . . . . . . . . . . . Retrieved Components . | . . . . . . . . . . . . . . . . . . Parts Scanalyzed 3 | . . . . . . . . . 2 . . . . 1 . . . Part Schematics Acquired 2 | . . . . . . . . . 1 . . . . 1 . . . Parts Damaged . | . . . . . . . . . . . . . . . . . . Bothacking | -11 -10 -10 -10 -9 -8 -8 -8 -8 -7 -7 -7 -6 -6 -5 -5 -5 -4 ------------ Run | Yrd Mat Min Exi Min Mat Gar Mat Sto Fac Low Dat Pro Fac Fac Ext Cet Fac Used RIF Installer . | . . . . . . . . . . . . . . . . . . Robots Hacked 1 | . . . . . . . . . . . . . . . 1 . . Non-combat . | . . . . . . . . . . . . . . . . . . Combat . | . . . . . . . . . . . . . . . . . . Robot Hacks Applied . | . . . . . . . . . . . . . . . . . . Manual 1 | . . . . . . . . . . . . . . . 1 . . Relay Couplers Released 6 | . . . . . . 6 . . . . . . . . . . . Machine Destruction 6 | . . . . . . 6 . . . . . . . . . . . Fabnet Peak Effective % . | . . . . . . . . . . . . . . . . . . Robots Rewired 14 | . . . . . . . . . . 1 . . . . 13 . . Allies Hacked . | . . . . . . . . . . . . . . . . . . Hacks Repelled . | . . . . . . . . . . . . . . . . . . Allies | -11 -10 -10 -10 -9 -8 -8 -8 -8 -7 -7 -7 -6 -6 -5 -5 -5 -4 -------- Run | Yrd Mat Min Exi Min Mat Gar Mat Sto Fac Low Dat Pro Fac Fac Ext Cet Fac Total Allies 31 | . . 3 . . . . . . 1 1 . . . . 21 5 . Largest Group 12 | . . 3 2 . . . . . 1 1 . . . . 12 6 5 Highest-Rated Group 623 | . . 73 42 . . . . . 26 20 . . . . 542 623 527 Highest-Rated Ally 159 | . . 31 31 . . . . . 26 20 . . . . 159 143 143 Total Orders 7 | . . . . . . . . . . 2 . 5 . . . . . EXPLORE 4 | . . . . . . . . . . 1 . 3 . . . . . RETURN 3 | . . . . . . . . . . 1 . 2 . . . . . Ally Attacks 268 | . . 4 . . . . . . . 2 . . . . 168 28 66 Total Damage 6795 | . . 21 . . . . . . . 47 . . . . 3387 919 2421 Kills 50 | . . 1 . . . . . . . . . . . . 30 6 13 Allies Corrupted . | . . . . . . . . . . . . . . . . . . Allies Melted . | . . . . . . . . . . . . . . . . . . Intel | -11 -10 -10 -10 -9 -8 -8 -8 -8 -7 -7 -7 -6 -6 -5 -5 -5 -4 ------- Run | Yrd Mat Min Exi Min Mat Gar Mat Sto Fac Low Dat Pro Fac Fac Ext Cet Fac Robot Analysis Total 8 | . 4 . . . 1 . . . . . . . 1 . 2 . . Derelict Logs Recovered 3 | . . 1 . . . . . . . 2 . . . . . . . Drone Launches 4 | . . . . . . . . . . 1 . 3 . . . . . Drone Recoveries 2 | . . . . . . . . . . 1 . 1 . . . . . Exploration | -11 -10 -10 -10 -9 -8 -8 -8 -8 -7 -7 -7 -6 -6 -5 -5 -5 -4 ------------- Run | Yrd Mat Min Exi Min Mat Gar Mat Sto Fac Low Dat Pro Fac Fac Ext Cet Fac Turns Passed 17474 | 190 1734 949 779 488 2165 1584 195 1197 1393 317 120 1219 494 1244 2115 575 716 Spaces Moved 7588 | 91 970 548 419 203 756 701 64 410 685 161 93 455 236 389 878 180 349 Core 17 | . . . . . 2 . . . . . . . . . . . 15 Treads 3385 | . 931 548 419 203 741 . . . . . . . . 58 . 151 334 Legs 3706 | 91 39 . . . 13 350 64 410 556 161 93 455 236 331 878 29 . Wheels 480 | . . . . . . 351 . . 129 . . . . . . . . Hover . | . . . . . . . . . . . . . . . . . . Flight . | . . . . . . . . . . . . . . . . . . Fastest Speed 50 | 120 120 160 160 240 190 145 190 190 126 130 130 125 122 124 120 160 50 Average Speed 183 | 120 159 160 185 240 247 171 190 207 159 130 130 182 163 197 196 230 155 Slowest Speed 1150 | 120 240 160 240 240 1150 540 190 540 540 130 130 270 200 410 330 260 160 Overloaded Moves . | . . . . . . . . . . . . . . . . . . Propulsion Burnouts . | . . . . . . . . . . . . . . . . . . Robots Hopped . | . . . . . . . . . . . . . . . . . . Cave-ins Triggered . | . . . . . . . . . . . . . . . . . . Exploration Rate (%) 45 | 5 81 98 71 42 48 66 5 40 18 18 73 72 6 10 88 69 11 Regions Visited 17 Branch Regions 9 Pre-discovered Areas 4 | . 1 . 1 . . . . . . 1 1 . . . . . . Known Exits Taken 11 | . 1 . . . 1 . . 1 1 1 1 1 1 1 1 1 . Unknown Exits Taken 5 | 1 . 1 1 1 . . 1 . . . . . . . . . . Scrap Searched 2 | . . 1 . . . . . . . 1 . . . . . . . Spaces Dug 18 | . . . . . 5 . . . 5 . . . 3 5 . . . Terrain Destroyed 409 | . 4 . . . 62 84 . . 37 57 . 48 4 42 36 7 28 Melee 12 | . . . . . . . . . 5 . . . 3 4 . . . Projectile 79 | . . . . . 28 . . . . . . 1 1 1 28 . 20 AOE 318 | . 4 . . . 34 84 . . 32 57 . 47 . 37 8 7 8 Terrain Rammed . | . . . . . . . . . . . . . . . . . . Walls Destroyed . | . . . . . . . . . . . . . . . . . . Machines Disabled . | . . . . . . . . . . . . . . . . . . Actions | -11 -10 -10 -10 -9 -8 -8 -8 -8 -7 -7 -7 -6 -6 -5 -5 -5 -4 --------- Run | Yrd Mat Min Exi Min Mat Gar Mat Sto Fac Low Dat Pro Fac Fac Ext Cet Fac Total 10111 | 148 1078 599 424 205 938 903 114 682 894 211 92 828 291 719 1197 327 461 Wait 1232 | 30 9 39 . 3 62 8 32 210 94 11 . 351 . 192 75 90 26 Move 7571 | 90 969 547 418 202 755 700 63 409 684 160 92 454 235 388 877 179 349 Hop . | . . . . . . . . . . . . . . . . . . Pick Up 148 | 2 17 1 2 . 17 7 3 7 20 1 . 1 8 17 25 14 6 Fast Attach 28 | 1 2 . . . 7 . . 5 3 . . 1 . 5 3 1 . Attach 77 | . 5 . 1 . 4 8 1 3 6 1 . 1 8 16 11 4 8 Detach 5 | . . . . . . . . . . . . . . 2 2 . 1 Swap 170 | 3 17 . 1 . 8 23 1 5 23 5 . 7 4 8 37 10 18 Drop 112 | . 14 1 2 . 10 . 2 6 16 . . 3 3 4 16 16 19 Fire 515 | 22 45 11 . . 74 63 . 37 43 31 . 10 30 63 39 13 34 Melee 78 | . . . . . . 34 12 . 5 . . . 3 23 1 . . Ram . | . . . . . . . . . . . . . . . . . . Kick . | . . . . . . . . . . . . . . . . . . Crush 1 | . . . . . 1 . . . . . . . . . . . . Escape Stasis 60 | . . . . . . 60 . . . . . . . . . . . Rewire 113 | . . . . . . . . . . 2 . . . . 111 . . Trap . | . . . . . . . . . . . . . . . . . . Miscellaneous 1 | . . . . . . . . . . . . . . 1 . . . Route ------- -11/Scrapyard -10/Materials (discovered 6 exits: *Mat x3 / *Min x2 / Sub) -10/Mines (discovered 3 exits: *Mat x2 / *Exi) -10/Exiles -9/Mines -8/Materials (discovered 5 exits: *Fac x3 / *Sto / Gar) -8/Garrison (discovered 3 exits: [*Mat x3]) -8/Materials -8/Storage -7/Factory (discovered 4 exits: *Fac x2 / *Low x2) -7/Lower Caves -7/Data Miner -6/Proximity Caves -6/Factory (discovered 4 exits: *Fac x2 / Low x2) -5/Factory (discovered 4 exits: Upp x2 / *Ext x2) -5/Extension (discovered 2 exits: *Fac / *Cet) -5/Cetus (discovered 2 exits: *Fac / [*Arc]) -4/Factory History --------- Turn | Location | Event 14 | -11/Scrapyard | Discovered new exit (range 3) 191 | -11/Scrapyard | Entered Materials 306 | -10/Materials | Build established: Mutant 422 | -10/Materials | Discovered new exit (range 5) 521 | -10/Materials | Discovered new exit (range 12) 781 | -10/Materials | Discovered new exit (range 14) 804 | -10/Materials | Identified exit to Subcaves 804 | -10/Materials | Identified exit to Materials 846 | -10/Materials | Learned Storage emergency access door positions 900 | -10/Materials | Learned location of 2 exits from Materials 911 | -10/Materials | Learned 2 Materials zone layouts 914 | -10/Materials | Learned location of 2 exits from Mines 954 | -10/Materials | Identified exit to Mines 988 | -10/Materials | Learned Storage emergency access door positions 1925 | -10/Materials | Entered Mines 1989 | -10/Mines | Received a Mining Laser from a helpful Derelict 2119 | -10/Mines | Learned Materials interactive machine intel 2627 | -10/Mines | A weapon hastily lodged in a ceiling crevice suddenly fell to the ground 2766 | -10/Mines | Deemed a non-threat by the Exiles lab entrance 2768 | -10/Mines | Discovered new exit (range 5) 2874 | -10/Mines | Entered Exiles 2874 | -10/Exiles | Accompanied by 2 allies 2904 | -10/Exiles | Led the pair of lost Derelicts to a safe place 2927 | -10/Exiles | Met 8R-AWN 2954 | -10/Exiles | Met EX-HEX 3007 | -10/Exiles | Met EX-BIN 3026 | -10/Exiles | Aligned with FarCom system 3028 | -10/Exiles | Given EX-Vault access code 3066 | -10/Exiles | Opened EX-Vault 3079 | -10/Exiles | Found Trap Reconfigurator 3112 | -10/Exiles | Warned to stay clear of 0b10 Research branches 3165 | -10/Exiles | Met EX-DEC 3175 | -10/Exiles | Learned location of Zion (-6) 3627 | -10/Exiles | Discovered new exit (range 14) 3653 | -10/Exiles | Left Exiles lab with Trap Reconfigurator 3653 | -10/Exiles | Entered Mines 3802 | -9/Mines | Discovered new exit (range 9) 4002 | -9/Mines | Assembled infested the area 4007 | -9/Mines | Assisted by a Guerilla fighting off Assembled 4141 | -9/Mines | Entered Materials 4141 | -8/Materials | Evolved 4 slots: Propulsion x2, Utility x2 4142 | -8/Materials | Identified exit to Factory 4144 | -8/Materials | Loaded intel: 19 interactive machine locations 4630 | -8/Materials | Central database locked down 4815 | -8/Materials | Discovered new exit (range 8) 5403 | -8/Materials | Discovered exit to Factory (range 10) 5668 | -8/Materials | Repaired Lgt. Treads 5695 | -8/Materials | Repaired Lgt. Treads 6139 | -8/Materials | Garrison activated, responded to threat 6180 | -8/Materials | Lost 3 parts (2n1u) 6193 | -8/Materials | Identified exit to Garrison 6306 | -8/Materials | Entered Garrison 6456 | -8/Garrison | Triggered checkpoint 6535 | -8/Garrison | Core integrity fell below 50% 6622 | -8/Garrison | Triggered checkpoint 6676 | -8/Garrison | Triggered checkpoint 6755 | -8/Garrison | Lost 5 parts (1p4n) 6822 | -8/Garrison | Discovered new exit (range 10) 6904 | -8/Garrison | Triggered checkpoint 7054 | -8/Garrison | Garrison Relay disabled 7105 | -8/Garrison | Discovered new exit (range 11) 7150 | -8/Garrison | Triggered checkpoint 7290 | -8/Garrison | Triggered checkpoint 7452 | -8/Garrison | Triggered checkpoint 7659 | -8/Garrison | Garrison Relay disabled 7695 | -8/Garrison | Discovered new exit (range 10) 7783 | -8/Garrison | Build established: Scavenger-Mutant 7838 | -8/Garrison | Phase Generator disabled 7890 | -8/Garrison | Entered Materials 7984 | -8/Materials | Discovered new exit (range 16) 8085 | -8/Materials | Entered Storage 8971 | -8/Storage | Core integrity fell below 20% 9013 | -8/Storage | Lost 4 parts (3n1u) 9243 | -8/Storage | Lost 3 parts (2n1u) 9267 | -8/Storage | Discovered exit to Factory (range 8) 9282 | -8/Storage | Entered Factory 9282 | -7/Factory | Evolved 2 slots: Utility x2 9470 | -7/Factory | Discovered new exit (range 4) 9478 | -7/Factory | Identified exit to Factory 9594 | -7/Factory | Lost 3 parts (3n) 9617 | -7/Factory | Assembled infested ambush trap array 9682 | -7/Factory | Destroyed 7 combat bots 9858 | -7/Factory | Build established: Mutant 9941 | -7/Factory | Discovered exit to Factory (range 19) 10539 | -7/Factory | Identified exit to Lower Caves 10675 | -7/Factory | Entered Lower Caves 10682 | -7/Lower Caves | Learned Factory stockpile data 10744 | -7/Lower Caves | Met a Warlord Commander 10745 | -7/Lower Caves | Learned location of Warlord (-4) 10746 | -7/Lower Caves | Warlord Commander delivered Encrypted Comm Array 10749 | -7/Lower Caves | Found Encrypted Comm Array 10780 | -7/Lower Caves | Learned 8 Factory zone layouts 10878 | -7/Lower Caves | Attracted the attention of an 0b10 outpost 10975 | -7/Lower Caves | A Derelict revealed a hidden shortcut to meet someone special 10990 | -7/Lower Caves | Identified exit to Data Miner 10992 | -7/Lower Caves | Entered Data Miner 10992 | -7/Data Miner | Discovered new exit (range 8) 11015 | -7/Data Miner | Met Data Miner 11057 | -7/Data Miner | Learned location of Section 7 (-2) 11057 | -7/Data Miner | Acquired the access code to Warlord's prototype stash 11081 | -7/Data Miner | Received God Mode back door access code from Data Miner 11109 | -7/Data Miner | Identified exit to Proximity Caves 11112 | -7/Data Miner | Entered Proximity Caves 11648 | -6/Proximity Caves | Build established: Scavenger-Mutant 11840 | -6/Proximity Caves | Spotted B-75 Beast 11952 | -6/Proximity Caves | Discovered exit to Factory (range 12) 12078 | -6/Proximity Caves | Received a Behemoth hack from an annoying Tinkerer 12331 | -6/Proximity Caves | Entered Factory 12331 | -6/Factory | Evolved 2 slots: Power x1, Utility x1 12332 | -6/Factory | Identified exit to Factory 12454 | -6/Factory | Identified exit to Lower Caves 12672 | -6/Factory | Discovered exit to Factory (range 20) 12688 | -6/Factory | Build established: Scavenger-Assassin 12825 | -6/Factory | Entered another Factory area 12825 | -5/Factory | Evolved 2 slots: Propulsion x1, Weapon x1 12988 | -5/Factory | Repaired Imp. Titanium Leg 13039 | -5/Factory | Repaired Flexi-carbon Leg 13060 | -5/Factory | Build established: Scavenger-Mutant 13085 | -5/Factory | Repaired Lyr. Light Armor Plating 13137 | -5/Factory | Repaired Adv. Beam Cannon 13303 | -5/Factory | Identified exit to Upper Caves 13303 | -5/Factory | Identified exit to Extension 13552 | -5/Factory | Garrison activated, responded to threat 13843 | -5/Factory | Lost 11 parts (2p3n4u2w) 13978 | -5/Factory | Fabricated Huge Storage Unit (x1) 14034 | -5/Factory | Build established: Mutant 14069 | -5/Factory | Entered Extension 14148 | -5/Extension | Rescued a captive Derelict 14342 | -5/Extension | Lost 3 parts (2n1w) 14697 | -5/Extension | Lost 4 allies 14955 | -5/Extension | Build established: Scavenger-Skirmisher 15507 | -5/Extension | Spotted B-75 Beast 15522 | -5/Extension | Befriended a Behemoth using the annoying Tinkerer's hack 15630 | -5/Extension | Rescued a captive Derelict 15687 | -5/Extension | Rescued a captive Derelict 15708 | -5/Extension | Rescued a captive Derelict 15709 | -5/Extension | Rescued a captive Derelict 15767 | -5/Extension | Rescued A7 15831 | -5/Extension | Rescued a captive Derelict 16076 | -5/Extension | Discovered new exit (range 10) 16077 | -5/Extension | Discovered new exit (range 6) 16103 | -5/Extension | Identified exit to Cetus 16144 | -5/Extension | Disrupted transfer network 16158 | -5/Extension | Disrupted transfer network 16184 | -5/Extension | Entered Cetus 16184 | -5/Cetus | Accompanied by 2 allies (A7) 16186 | -5/Cetus | Destroyed 11 combat bots 16189 | -5/Cetus | Acquired a Cetus Manufacturing Module code from A7 16192 | -5/Cetus | Lost 7 allies 16212 | -5/Cetus | Spotted Cetus Guard 16212 | -5/Cetus | Spotted Cetus Guard 16216 | -5/Cetus | Spotted Cetus Guard 16217 | -5/Cetus | Spotted Cetus Guard 16224 | -5/Cetus | Allies destroyed Cetus Guard 16232 | -5/Cetus | Allies destroyed Cetus Guard 16233 | -5/Cetus | Allies destroyed Cetus Guard 16235 | -5/Cetus | Allies destroyed Cetus Guard 16271 | -5/Cetus | System corruption reached 10% 16379 | -5/Cetus | Started Cetus Manufacturing Module 16404 | -5/Cetus | Manufactured an Enhanced Grunt 16429 | -5/Cetus | Manufactured an Enhanced Grunt 16454 | -5/Cetus | Manufactured an Enhanced Grunt 16466 | -5/Cetus | Build established: Scavenger-Tank 16479 | -5/Cetus | Manufactured an Enhanced Grunt 16504 | -5/Cetus | Manufactured an Enhanced Grunt 16559 | -5/Cetus | Discovered new exit (range 15) 16600 | -5/Cetus | Spotted Cetus Guard 16600 | -5/Cetus | Spotted Cetus Guard 16604 | -5/Cetus | Spotted Cetus Guard 16605 | -5/Cetus | Spotted Cetus Guard 16609 | -5/Cetus | Allies destroyed Cetus Guard 16613 | -5/Cetus | Destroyed Cetus Guard 16619 | -5/Cetus | Destroyed Cetus Guard 16621 | -5/Cetus | Destroyed Cetus Guard 16629 | -5/Cetus | Discovered new exit (range 16) 16652 | -5/Cetus | Found Prototype Device 16652 | -5/Cetus | Identified Exp. Thermal Shield 16690 | -5/Cetus | Met Revision 17 16716 | -5/Cetus | System corruption reached 30% 16757 | -5/Cetus | Identified exit to Factory 16759 | -5/Cetus | Entered Factory 16759 | -4/Factory | Accompanied by 5 allies (A7) 16759 | -4/Factory | Evolved 2 slots: Propulsion x1, Utility x1 16809 | -4/Factory | Identified exit to DSF 17164 | -4/Factory | Build established: Scavenger-Skirmisher 17259 | -4/Factory | First assault squad dispatched 17463 | -4/Factory | Core integrity fell below 50% 17468 | -4/Factory | Released all parts (4) 17469 | -4/Factory | Core integrity fell below 20% 17475 | -4/Factory | Destroyed by H-77 Assassin with High-powered Shotgun Last Messages --------------- 17465_ Imp. System Shield destroyed. 17465_ Centrium Medium Armor Plating destroyed. 17466_ Overheating: Matter decay (-63). 17466_ G-73 Enforcer heat damages Adv. Heat Sink, Lgt. Quantum Reactor, Phase Gun, Myomer Leg. 17466_ K-01 Serf collects debris. 17466_ G-73 Enforcer overheating. 17467_ Dropped Mass Driver. 17467_ Dropped Adv. Variable Charge Gun. 17467_ G-73 Enforcer overheating. 17468_ Released Imp. Signal Interpreter. 17468_ Released Adv. Salvage Targeting Computer. 17468_ Released Huge Storage Unit. 17468_ Released Centrium Medium Armor Plating. 17468_ Acquired 97 matter. 17473_ K-01 Serf collects debris. 17475_ Penetrated by Slug. 17475_ G-67 Veteran suffers critical hit (Destroy). Map ----- +----------------------------------------------------+ | | | | | | | | | | | | | ?????????????????????????????????????????#???#???? | | ?????????????????????????????????????????????????? | | ?????????????????????????????????????????????????? | | ??????????????????????????????????????????? ?????? | | ??????????????????????????????????????????????? ?? | | ????????????????????????????????????????????? ?? ? | | ???????????????????????##???###??????????????????? | | ????????????????????"#??"#??# ???#####????####### | | ???????????????????? ?#"###""### ? ? # | | ?????????????????????! # # ?? # | | ?????????????????????? =#! # "?""""""" # | | ???????????????????????*%= # ?? # | | ?????????????????? ????# " i????""""" + | | ???????????????????" !??# " ?? ???? # | | ???????????????????" !!!# "###########+### | | ?????????????????????? g g]!# !%! | | ????????????????????????# =%!!=!![! | | ???????????????????##???# [g/!]!!! | | ?????????????????### ######g!gm[#! | | ??????????? T h @ %gg%[k[[%[% % | | ?????????????????###[ ### %!g=######+#+#####+###" | | ?????????????????????????# % g## !# | | ?????????????????????????# *!## # " | | ?????????????????????????#+##+##= ! # " | | ?????????????????????????# # # """ | | ?????????????????????????# ! # ** # "" | | ??????????h??????????????# # "" # "" | | ?????????????????????????# # "" ** # | | ?????????????????????????# "" =# """ # """ | | ?????????????????????????# "" # """ # """ | | ?????????????????????????# "" # """ # "?" | | ?????????????????????????# S # # "? | | ?????????????????????????# "" # # ??? | | ?????????????????????????# "" ##############????? | | ?????????????????????????# "" #?????????????????? | | ?????????????????????????# ?? #?????????????????? | | ?????????????????????????##??###????????????#????? | | ?????????????????????????????????????????????????# | | ????????????????????????????????????????????#?#??? | | ?????????????????????????????????????????????????? | | ?????????????????????????????????????????????????? | | ?????????????????????????????????????????????????? | | ?????????????????????????????????????????????????? | | ?????????????????????????????????????????????????? | +----------------------------------------------------+ Best States ------------- Heat Dissipation 67 Energy Generation 41 Energy Capacity 880 Matter Stores 300 Matter Capacity 300 Sight Range 20 Terrain Scan Range 24 Terrain Scan Density 10 Jamming Range 16 EM Shielding 2 Armor Coverage 450 Resistance: KI 30 Resistance: TH 30 Resistance: EM 15 Utility Shielding 33 Evasion (%) 55 Recoil Reduction 6 Salvage Targeting 3 Offensive Hacking 10 Defensive Hacking 12 Item Schematics ----------------- Huge Storage Unit | -10/Materials | Hacked Imp. Cooling System | -7/Factory | Scanalyzed Combat Drone Bay | -7/Data Miner | Free Lgt. Regenerative Plating | -7/Data Miner | Free Cld. Aerolev Unit | -7/Data Miner | Free Gravity Neutralizer | -7/Data Miner | Free Ion Burst Cannon | -7/Data Miner | Free Arm. Medium Treads | -7/Data Miner | Free Adv. Drone Bay | -7/Data Miner | Free Variable Charge Gun | -7/Data Miner | Free Lrn. Tractor Beam | -7/Data Miner | Free Proton Cannon | -7/Data Miner | Free Lrn. Terrain Scanner | -7/Data Miner | Free System Restoration Module | -5/Factory | Scanalyzed Robot Schematics ------------------ G-47 Trooper | -7/Data Miner | Free L-41 Fighter | -7/Data Miner | Free M-14 Sweeper | -7/Data Miner | Free G-50 Soldier | -7/Data Miner | Free H-66 Slayer | -7/Data Miner | Free R-10 Processor | -7/Data Miner | Free Fabricated ------------ Huge Storage Unit | x1 | -5/Factory Alien Tech Used ----------------- None Achievements -------------- None Challenges ------------ None Game ------ Seed MicroInsulationShield Manual? 0 Play Time 02:56:01 Cumulative 296.7 hours Start 2024.09.14 @ 23:57:19 End 2024.09.15 @ 02:57:27 Sessions 1 Manual Loads 0 Difficulty Rogue Special Mode None Game No. 216 Rogue 206 Adventurer 0 Explorer 10 Win Type - Total 3 Types 3/0/0/0/0/0/0/0/0 Lore% 75 Gallery% 73 Achievement% 56 Wizard Run 0 Options --------- Layout 2 ASCII 0 Keyboard 0 Movement Arrows Keybinds 1 Fullscreen 1 Font 24/Smallcaps Map View 50x44 Zoom Use 0% Tactical HUD 1 Map Filters NONE Filters NONE Steam 1 RUN: 51c4571b-1c9b-4791-9b45-7c04aa1f9afe